[Event "*** Titled Tuesday Blitz"]
[Site "Chess.com"]
[Date "2019.04.02"]
[Round "7"]
[White "Chesstrainer1"]
[Black "BlackBoarder"]
[Result "1-0"]
[WhiteElo "2414"]
[BlackElo "2514"]
[TimeControl "180+2"]
[EndTime "15:31:44 PDT"]
[Termination "Chesstrainer1 won by resignation"]

1. d4 {[%clk 0:03:01.9]} 1... e6 {[%clk 0:02:54.3]} 2. e4 {[%clk 0:03:00.5]}
2... d5 {[%clk 0:02:54.7]} 3. e5 {[%clk 0:02:59.1]} 3... c5 {[%clk 0:02:55.8]}
4. c3 {[%clk 0:03:00.1]} 4... Nc6 {[%clk 0:02:56.9]} 5. Nf3 {[%clk 0:03:01.6]}
5... Bd7 {[%clk 0:02:58.4]} 6. a3 {[%clk 0:02:56.9]} 6... f6 {[%clk 0:02:59.3]}
7. Bd3 {[%clk 0:02:53.7]} 7... fxe5 {[%clk 0:02:58]} 8. dxe5 {[%clk 0:02:54.1]}
8... Qc7 {[%clk 0:02:58.3]} 9. O-O {[%clk 0:02:48.4]} 9... Nxe5 {[%clk
0:02:20.7]} 10. Bf4 {[%clk 0:02:45.3]} 10... Nxf3+ {[%clk 0:02:06.5]} 11. Qxf3
{[%clk 0:02:45.6]} 11... Bd6 {[%clk 0:02:03.3]} 12. Qh5+ {[%clk 0:02:38]} 12...
Kf8 {[%clk 0:01:17.2]} 13. Bg5 {[%clk 0:02:31.1]} 13... Nf6 {[%clk 0:01:15.5]}
14. Qh4 {[%clk 0:02:28.9]} 14... Be7 {[%clk 0:01:10.1]} 15. Nd2 {[%clk
0:02:24.6]} 15... e5 {[%clk 0:01:00.4]} 16. c4 {[%clk 0:02:11.7]} 16... d4
{[%clk 0:00:32.5]} 17. f4 {[%clk 0:02:02.8]} 17... h6 {[%clk 0:00:26.9]} 18. Ne4
{[%clk 0:01:53.6]} 18... Ke8 {[%clk 0:00:02.9]} 19. Nxf6+ {[%clk 0:01:39.1]}
19... gxf6 {[%clk 0:00:02.9]} 20. Bxf6 {[%clk 0:01:40.1]} 20... Bxf6 {[%clk
0:00:02.6]} 21. Qxf6 {[%clk 0:01:41.5]} 21... Rg8 {[%clk 0:00:02.7]} 22. Bg6+
{[%clk 0:01:38.3]} 22... Rxg6 {[%clk 0:00:03.8]} 23. Qxg6+ {[%clk 0:01:39.9]}
23... Ke7 {[%clk 0:00:05.4]} 24. fxe5 {[%clk 0:01:38.4]} 1-0

[Event "*** Titled Tuesday Blitz"]
[Site "Chess.com"]
[Date "2019.04.02"]
[Round "7"]
[White "AsaHoffmann"]
[Black "effefe"]
[Result "0-1"]
[WhiteElo "2181"]
[BlackElo "2273"]
[TimeControl "180+2"]
[EndTime "15:31:55 PDT"]
[Termination "effefe won by resignation"]

1. d4 {[%clk 0:03:01.9]} 1... Nf6 {[%clk 0:03:00.6]} 2. Bg5 {[%clk 0:02:59.9]}
2... c5 {[%clk 0:03:00.7]} 3. d5 {[%clk 0:02:59.2]} 3... Qb6 {[%clk 0:02:59.4]}
4. Nc3 {[%clk 0:02:58.5]} 4... Qxb2 {[%clk 0:02:55.4]} 5. Bd2 {[%clk 0:02:58.1]}
5... Qb6 {[%clk 0:02:56.2]} 6. e4 {[%clk 0:02:58.6]} 6... d6 {[%clk 0:02:57]} 7.
f4 {[%clk 0:02:59.1]} 7... e5 {[%clk 0:02:54.5]} 8. Nf3 {[%clk 0:02:58.4]} 8...
Nbd7 {[%clk 0:02:54.2]} 9. Rb1 {[%clk 0:02:57]} 9... Qd8 {[%clk 0:02:54.3]} 10.
Bb5 {[%clk 0:02:49.8]} 10... a6 {[%clk 0:02:52.7]} 11. fxe5 {[%clk 0:02:49.9]}
11... axb5 {[%clk 0:02:51.7]} 12. exf6 {[%clk 0:02:49.4]} 12... b4 {[%clk
0:02:41.5]} 13. fxg7 {[%clk 0:02:47.5]} 13... Bxg7 {[%clk 0:02:43.4]} 14. Ne2
{[%clk 0:02:34.6]} 14... Rxa2 {[%clk 0:02:38.3]} 15. O-O {[%clk 0:02:33.7]}
15... O-O {[%clk 0:02:37.8]} 16. Ng3 {[%clk 0:02:33.7]} 16... Ne5 {[%clk
0:02:12.8]} 17. Nh5 {[%clk 0:02:29.6]} 17... Bg4 {[%clk 0:02:12.5]} 18. Nxg7
{[%clk 0:02:25.1]} 18... Kxg7 {[%clk 0:02:11.8]} 19. Qc1 {[%clk 0:02:19.7]}
19... Bxf3 {[%clk 0:01:42.9]} 20. gxf3 {[%clk 0:02:19.3]} 20... Qh4 {[%clk
0:01:42.6]} 21. Kh1 {[%clk 0:02:15.5]} 21... Kh8 {[%clk 0:01:39.4]} 22. Bg5
{[%clk 0:02:10.3]} 22... Qh5 {[%clk 0:01:35.7]} 23. Qf4 {[%clk 0:02:03]} 23...
Ng6 {[%clk 0:01:35.2]} 24. Bf6+ {[%clk 0:01:56.9]} 24... Kg8 {[%clk 0:01:35.2]}
25. Qxd6 {[%clk 0:01:57.1]} 25... Rxc2 {[%clk 0:01:34.4]} 26. Rb2 {[%clk
0:01:48.7]} 26... Qh3 {[%clk 0:01:22.2]} 0-1

[Event "*** Titled Tuesday Blitz"]
[Site "Chess.com"]
[Date "2019.04.02"]
[Round "7"]
[White "ChainsOfFantasia"]
[Black "Last7Samurai"]
[Result "0-1"]
[WhiteElo "2467"]
[BlackElo "2741"]
[TimeControl "180+2"]
[EndTime "15:32:12 PDT"]
[Termination "Last7Samurai won by checkmate"]

1. d4 {[%clk 0:03:01]} 1... d5 {[%clk 0:03:00.1]} 2. Nf3 {[%clk 0:02:52.4]} 2...
Nf6 {[%clk 0:03:00.6]} 3. e3 {[%clk 0:02:46.2]} 3... e6 {[%clk 0:03:01]} 4. Bd3
{[%clk 0:02:47.2]} 4... c5 {[%clk 0:03:00.4]} 5. O-O {[%clk 0:02:49.1]} 5... Nc6
{[%clk 0:03:01.3]} 6. c3 {[%clk 0:02:50.2]} 6... Bd6 {[%clk 0:03:02.2]} 7. Nbd2
{[%clk 0:02:51.2]} 7... O-O {[%clk 0:03:03.1]} 8. dxc5 {[%clk 0:02:52.5]} 8...
Bxc5 {[%clk 0:03:04.6]} 9. b4 {[%clk 0:02:54]} 9... Bd6 {[%clk 0:03:03.3]} 10.
Bb2 {[%clk 0:02:55.6]} 10... a6 {[%clk 0:03:03.6]} 11. a3 {[%clk 0:02:54.5]}
11... e5 {[%clk 0:03:04.1]} 12. e4 {[%clk 0:02:55.2]} 12... Bg4 {[%clk
0:03:04.9]} 13. h3 {[%clk 0:02:55.2]} 13... Bh5 {[%clk 0:03:05.8]} 14. exd5
{[%clk 0:02:54.3]} 14... Nxd5 {[%clk 0:03:03.4]} 15. Ne4 {[%clk 0:02:55.4]}
15... Bc7 {[%clk 0:03:00.1]} 16. Ng3 {[%clk 0:02:52.5]} 16... Bg6 {[%clk
0:02:49]} 17. Bxg6 {[%clk 0:02:51.7]} 17... hxg6 {[%clk 0:02:50.9]} 18. c4
{[%clk 0:02:51.3]} 18... Nf4 {[%clk 0:02:46.2]} 19. Qxd8 {[%clk 0:02:45.8]}
19... Raxd8 {[%clk 0:02:48.1]} 20. b5 {[%clk 0:02:36.6]} 20... axb5 {[%clk
0:02:47.4]} 21. cxb5 {[%clk 0:02:38.2]} 21... Nd4 {[%clk 0:02:49]} 22. Nxd4
{[%clk 0:02:33.1]} 22... exd4 {[%clk 0:02:50.9]} 23. Rac1 {[%clk 0:02:28.4]}
23... Bb6 {[%clk 0:02:47.5]} 24. Rfd1 {[%clk 0:02:29]} 24... Rfe8 {[%clk
0:02:44.9]} 25. Rd2 {[%clk 0:02:23.3]} 25... d3 {[%clk 0:02:38]} 26. Kf1 {[%clk
0:01:53.4]} 26... Ba5 {[%clk 0:02:28.2]} 27. Rdd1 {[%clk 0:01:53.9]} 27... Ne2
{[%clk 0:02:24.2]} 28. Rc4 {[%clk 0:01:44.3]} 28... Nxg3+ {[%clk 0:02:20.8]} 29.
fxg3 {[%clk 0:01:46.2]} 29... Re2 {[%clk 0:02:21.3]} 30. Bc3 {[%clk 0:01:43.8]}
30... Bb6 {[%clk 0:02:16.8]} 31. Bd4 {[%clk 0:01:39]} 31... Rxd4 {[%clk
0:02:09.7]} 32. Rxd4 {[%clk 0:01:38.1]} 32... Bxd4 {[%clk 0:02:10.9]} 33. Rxd3
{[%clk 0:01:40]} 33... Re4 {[%clk 0:02:10.1]} 34. a4 {[%clk 0:01:41.2]} 34... b6
{[%clk 0:02:05.9]} 35. Ra3 {[%clk 0:01:37.2]} 35... Bc5 {[%clk 0:02:06.5]} 36.
Ra2 {[%clk 0:01:37.4]} 36... Bb4 {[%clk 0:01:56.6]} 37. g4 {[%clk 0:01:34.1]}
37... g5 {[%clk 0:01:54.8]} 38. Kf2 {[%clk 0:01:35.2]} 38... Ba5 {[%clk
0:01:54.5]} 39. Kf3 {[%clk 0:01:35.2]} 39... Rc4 {[%clk 0:01:53.9]} 40. g3
{[%clk 0:01:30.5]} 40... g6 {[%clk 0:01:54.5]} 41. h4 {[%clk 0:01:31.2]} 41...
Rc3+ {[%clk 0:01:52.8]} 42. Kg2 {[%clk 0:01:27.2]} 42... gxh4 {[%clk 0:01:53.5]}
43. gxh4 {[%clk 0:01:28.3]} 43... Kg7 {[%clk 0:01:55.1]} 44. g5 {[%clk 0:01:26]}
44... f6 {[%clk 0:01:53.5]} 45. Re2 {[%clk 0:01:24.3]} 45... fxg5 {[%clk
0:01:51.8]} 46. hxg5 {[%clk 0:01:26.2]} 46... Rc5 {[%clk 0:01:52.2]} 47. Re7+
{[%clk 0:01:26.9]} 47... Kf8 {[%clk 0:01:52]} 48. Rb7 {[%clk 0:01:27.3]} 48...
Rxg5+ {[%clk 0:01:52.6]} 49. Kf3 {[%clk 0:01:29.2]} 49... Rf5+ {[%clk
0:01:49.8]} 50. Kg4 {[%clk 0:01:29.5]} 50... Rf7 {[%clk 0:01:50.6]} 51. Rb8+
{[%clk 0:01:29.7]} 51... Kg7 {[%clk 0:01:51.8]} 52. Kg5 {[%clk 0:01:30.9]} 52...
Rd7 {[%clk 0:01:50.2]} 53. Kf4 {[%clk 0:01:26.6]} 53... Rd4+ {[%clk 0:01:48.8]}
54. Kg5 {[%clk 0:01:27.6]} 54... Bd2# {[%clk 0:01:49]} 0-1

[Event "*** Titled Tuesday Blitz"]
[Site "Chess.com"]
[Date "2019.04.02"]
[Round "7"]
[White "champ2005"]
[Black "IMRosen"]
[Result "1-0"]
[WhiteElo "2806"]
[BlackElo "2536"]
[TimeControl "180+2"]
[EndTime "15:32:17 PDT"]
[Termination "champ2005 won by checkmate"]

1. d4 {[%clk 0:03:00.6]} 1... Nf6 {[%clk 0:02:57.1]} 2. Nc3 {[%clk 0:03:01.6]}
2... d5 {[%clk 0:02:56.9]} 3. Bf4 {[%clk 0:03:02.8]} 3... a6 {[%clk 0:02:52.9]}
4. e3 {[%clk 0:03:03.4]} 4... g6 {[%clk 0:02:54.1]} 5. h4 {[%clk 0:03:01.6]}
5... h5 {[%clk 0:02:47.7]} 6. Nf3 {[%clk 0:03:02.2]} 6... Bg7 {[%clk 0:02:47.9]}
7. Ne5 {[%clk 0:03:02.6]} 7... O-O {[%clk 0:02:47.1]} 8. Be2 {[%clk 0:03:03.4]}
8... c5 {[%clk 0:02:48.6]} 9. dxc5 {[%clk 0:03:04]} 9... Nc6 {[%clk 0:02:46]}
10. O-O {[%clk 0:03:02.8]} 10... Qa5 {[%clk 0:02:40.4]} 11. Nxd5 {[%clk
0:02:43.6]} 11... Nxd5 {[%clk 0:02:30.3]} 12. Qxd5 {[%clk 0:02:38.8]} 12... Nxe5
{[%clk 0:02:31.4]} 13. Bxe5 {[%clk 0:02:39]} 13... Rd8 {[%clk 0:02:31.7]} 14.
Qe4 {[%clk 0:02:37]} 14... Bf5 {[%clk 0:02:31.7]} 15. Qf4 {[%clk 0:02:38.1]}
15... Qxc5 {[%clk 0:02:17.3]} 16. Bxg7 {[%clk 0:02:32.7]} 16... Kxg7 {[%clk
0:02:19.2]} 17. Bf3 {[%clk 0:02:24.5]} 17... e5 {[%clk 0:01:54.4]} 18. Qg3
{[%clk 0:02:17.2]} 18... e4 {[%clk 0:01:40.5]} 19. Bxh5 {[%clk 0:02:12.2]} 19...
Qxc2 {[%clk 0:01:35.8]} 20. Qe5+ {[%clk 0:02:02.8]} 20... Kg8 {[%clk 0:01:30.6]}
21. Rac1 {[%clk 0:01:54.8]} 21... Qa4 {[%clk 0:01:20]} 22. Be2 {[%clk 0:01:53]}
22... Qxa2 {[%clk 0:01:02.4]} 23. Bc4 {[%clk 0:01:48.7]} 23... Qa4 {[%clk
0:01:00.1]} 24. h5 {[%clk 0:01:48.2]} 24... Qe8 {[%clk 0:00:50.8]} 25. Qf6
{[%clk 0:01:45.1]} 25... Be6 {[%clk 0:00:15.5]} 26. h6 {[%clk 0:01:44.5]} 26...
Qf8 {[%clk 0:00:13]} 27. Bxe6 {[%clk 0:01:44.4]} 27... Rd6 {[%clk 0:00:06.1]}
28. Qxg6+ {[%clk 0:01:42]} 28... Kh8 {[%clk 0:00:05.4]} 29. Qf6+ {[%clk
0:01:42]} 29... Kg8 {[%clk 0:00:05.1]} 30. h7+ {[%clk 0:01:41]} 30... Kxh7
{[%clk 0:00:04.5]} 31. Rc5 {[%clk 0:01:35.6]} 31... Rxe6 {[%clk 0:00:02.4]} 32.
Rh5+ {[%clk 0:01:36]} 32... Kg8 {[%clk 0:00:03.2]} 33. Rh8# {[%clk 0:01:36.4]}
1-0

[Event "*** Titled Tuesday Blitz"]
[Site "Chess.com"]
[Date "2019.04.02"]
[Round "7"]
[White "Kirill_Klukin"]
[Black "2165149677570"]
[Result "1-0"]
[WhiteElo "2571"]
[BlackElo "2366"]
[TimeControl "180+2"]
[EndTime "15:32:27 PDT"]
[Termination "Kirill_Klukin won by resignation"]

1. Nf3 {[%clk 0:03:01.9]} 1... c5 {[%clk 0:02:59.7]} 2. c4 {[%clk 0:03:02.7]}
2... Nc6 {[%clk 0:03:00.9]} 3. Nc3 {[%clk 0:03:03.8]} 3... g6 {[%clk 0:03:01.9]}
4. e3 {[%clk 0:03:03.7]} 4... Nf6 {[%clk 0:03:03.3]} 5. d4 {[%clk 0:03:03.5]}
5... cxd4 {[%clk 0:03:05.2]} 6. exd4 {[%clk 0:03:04.7]} 6... d5 {[%clk
0:03:06.2]} 7. Bg5 {[%clk 0:03:01.2]} 7... Be6 {[%clk 0:03:04]} 8. Bxf6 {[%clk
0:02:55.3]} 8... exf6 {[%clk 0:03:05.9]} 9. c5 {[%clk 0:02:55.8]} 9... Bg7
{[%clk 0:03:04.9]} 10. Be2 {[%clk 0:02:54.5]} 10... O-O {[%clk 0:03:05.7]} 11.
O-O {[%clk 0:02:55.6]} 11... f5 {[%clk 0:03:04]} 12. Rb1 {[%clk 0:02:54.9]}
12... g5 {[%clk 0:03:05.1]} 13. h3 {[%clk 0:02:35.8]} 13... g4 {[%clk
0:03:02.1]} 14. hxg4 {[%clk 0:02:36.4]} 14... fxg4 {[%clk 0:03:04]} 15. Ne5
{[%clk 0:02:34]} 15... Nxe5 {[%clk 0:02:57.2]} 16. dxe5 {[%clk 0:02:35.9]} 16...
Qg5 {[%clk 0:02:58.5]} 17. Qc1 {[%clk 0:02:13.9]} 17... Qxc1 {[%clk 0:02:55.2]}
18. Rbxc1 {[%clk 0:02:15.8]} 18... Bxe5 {[%clk 0:02:56.7]} 19. Rfd1 {[%clk
0:02:17.2]} 19... Rad8 {[%clk 0:02:51.9]} 20. b4 {[%clk 0:02:16.8]} 20... f5
{[%clk 0:02:29.9]} 21. Nb5 {[%clk 0:02:15.5]} 21... a6 {[%clk 0:02:24]} 22. Nd4
{[%clk 0:02:16.5]} 22... Bxd4 {[%clk 0:02:19.6]} 23. Rxd4 {[%clk 0:02:17.2]}
23... f4 {[%clk 0:02:21.5]} 24. a4 {[%clk 0:02:15.7]} 24... f3 {[%clk
0:02:00.3]} 25. Bd3 {[%clk 0:02:13.6]} 25... h5 {[%clk 0:01:43.4]} 26. b5 {[%clk
0:02:03.8]} 26... a5 {[%clk 0:01:44.3]} 27. Re1 {[%clk 0:01:47.3]} 27... Bf5
{[%clk 0:01:39.1]} 28. Re5 {[%clk 0:01:42.7]} 28... Bxd3 {[%clk 0:01:35.7]} 29.
Rxd3 {[%clk 0:01:44.6]} 29... Rf4 {[%clk 0:01:26.5]} 30. Rexd5 {[%clk
0:01:45.4]} 30... Rxd5 {[%clk 0:01:26.9]} 31. Rxd5 {[%clk 0:01:47.3]} 31... Rxa4
{[%clk 0:01:19]} 32. Rd8+ {[%clk 0:01:48]} 32... Kf7 {[%clk 0:01:20.2]} 33. Rd7+
{[%clk 0:01:49.4]} 33... Ke6 {[%clk 0:01:22.1]} 34. Rxb7 {[%clk 0:01:50.5]}
34... Rc4 {[%clk 0:01:21.3]} 35. c6 {[%clk 0:01:45.9]} 35... a4 {[%clk
0:01:19.6]} 36. c7 {[%clk 0:01:30.7]} 36... Kd7 {[%clk 0:01:18.7]} 37. b6 {[%clk
0:01:31.3]} 37... a3 {[%clk 0:01:12.4]} 38. Ra7 {[%clk 0:01:32.5]} 38... fxg2
{[%clk 0:00:50.7]} 39. Kxg2 {[%clk 0:01:33]} 39... h4 {[%clk 0:00:51.6]} 40.
Rxa3 {[%clk 0:01:30.6]} 40... Rc6 {[%clk 0:00:44.3]} 41. Rd3+ {[%clk 0:01:28.4]}
1-0

[Event "*** Titled Tuesday Blitz"]
[Site "Chess.com"]
[Date "2019.04.02"]
[Round "7"]
[White "Vice64"]
[Black "Quiet_Desperation"]
[Result "1-0"]
[WhiteElo "2553"]
[BlackElo "2416"]
[TimeControl "180+2"]
[EndTime "15:32:28 PDT"]
[Termination "Vice64 won by resignation"]

1. e4 {[%clk 0:03:01.9]} 1... Nc6 {[%clk 0:02:58.8]} 2. Nf3 {[%clk 0:03:02.2]}
2... d6 {[%clk 0:02:59.2]} 3. Bb5 {[%clk 0:03:02.6]} 3... Nf6 {[%clk 0:03:00]}
4. Nc3 {[%clk 0:02:56.4]} 4... Bd7 {[%clk 0:02:57.5]} 5. O-O {[%clk 0:02:56.3]}
5... e5 {[%clk 0:02:56.7]} 6. Bxc6 {[%clk 0:02:50]} 6... bxc6 {[%clk 0:02:49.2]}
7. d4 {[%clk 0:02:50.8]} 7... exd4 {[%clk 0:02:50.3]} 8. Nxd4 {[%clk 0:02:51.9]}
8... Be7 {[%clk 0:02:51.7]} 9. f4 {[%clk 0:02:48.4]} 9... O-O {[%clk 0:02:51.8]}
10. h3 {[%clk 0:02:43.4]} 10... c5 {[%clk 0:02:42.1]} 11. Nf3 {[%clk 0:02:44.3]}
11... Bc6 {[%clk 0:02:30.9]} 12. e5 {[%clk 0:02:39.8]} 12... Ne4 {[%clk
0:02:24.3]} 13. Nxe4 {[%clk 0:02:25.3]} 13... Bxe4 {[%clk 0:02:23.2]} 14. c3
{[%clk 0:02:17.1]} 14... dxe5 {[%clk 0:02:03.3]} 15. Nxe5 {[%clk 0:02:13.7]}
15... Qxd1 {[%clk 0:02:00.3]} 16. Rxd1 {[%clk 0:02:14.6]} 16... Rad8 {[%clk
0:01:49.5]} 17. Be3 {[%clk 0:02:14.5]} 17... Bd6 {[%clk 0:01:41.1]} 18. Nc4
{[%clk 0:02:12.3]} 18... Rfe8 {[%clk 0:01:39.5]} 19. Kf2 {[%clk 0:02:13.1]}
19... f6 {[%clk 0:01:18.7]} 20. Rd2 {[%clk 0:02:11.4]} 20... Be7 {[%clk
0:01:06.4]} 21. Rad1 {[%clk 0:02:10.9]} 21... Rxd2+ {[%clk 0:01:07.1]} 22. Rxd2
{[%clk 0:02:11.9]} 22... Kf7 {[%clk 0:01:00.9]} 23. Rd7 {[%clk 0:02:10.1]} 23...
Ke6 {[%clk 0:01:01.8]} 24. Rxc7 {[%clk 0:02:07.4]} 24... Bd5 {[%clk 0:01:02.6]}
25. Na5 {[%clk 0:01:55.6]} 25... Rb8 {[%clk 0:00:53.9]} 26. b3 {[%clk
0:01:50.1]} 26... a6 {[%clk 0:00:41.9]} 27. Nc6 {[%clk 0:01:39.7]} 27... Bxc6
{[%clk 0:00:35.5]} 28. Rxc6+ {[%clk 0:01:41.6]} 28... Kd5 {[%clk 0:00:35.2]} 29.
Rxa6 {[%clk 0:01:41.8]} 29... c4 {[%clk 0:00:35.7]} 30. b4 {[%clk 0:01:38.6]}
30... Bd6 {[%clk 0:00:36]} 31. Kf3 {[%clk 0:01:39]} 31... Re8 {[%clk 0:00:35.7]}
32. a4 {[%clk 0:01:38.4]} 32... Bc7 {[%clk 0:00:36.3]} 33. a5 {[%clk 0:01:36.2]}
33... h6 {[%clk 0:00:28.2]} 34. b5 {[%clk 0:01:34.9]} 34... g5 {[%clk
0:00:28.2]} 35. b6 {[%clk 0:01:30.2]} 35... Bd6 {[%clk 0:00:28.9]} 36. b7 {[%clk
0:01:28.5]} 36... Bb8 {[%clk 0:00:28.2]} 37. Rxf6 {[%clk 0:01:26.3]} 37... gxf4
{[%clk 0:00:24.7]} 38. Bxf4 {[%clk 0:01:26.4]} 38... Bxf4 {[%clk 0:00:25.4]} 39.
Rxf4 {[%clk 0:01:27.3]} 1-0

[Event "*** Titled Tuesday Blitz"]
[Site "Chess.com"]
[Date "2019.04.02"]
[Round "7"]
[White "mikhaillushenkov"]
[Black "Shant_Sargsyan"]
[Result "1-0"]
[WhiteElo "2690"]
[BlackElo "2930"]
[TimeControl "180+2"]
[EndTime "15:32:34 PDT"]
[Termination "mikhaillushenkov won on time"]

1. Nf3 {[%clk 0:03:01.9]} 1... g6 {[%clk 0:02:57.1]} 2. e4 {[%clk 0:03:01.7]}
2... Bg7 {[%clk 0:02:58.6]} 3. d4 {[%clk 0:03:02.6]} 3... d6 {[%clk 0:02:59.6]}
4. c4 {[%clk 0:03:03.5]} 4... Nf6 {[%clk 0:03:00.3]} 5. Nc3 {[%clk 0:03:04.5]}
5... O-O {[%clk 0:03:01.7]} 6. Be2 {[%clk 0:03:05.5]} 6... e5 {[%clk 0:03:03.2]}
7. O-O {[%clk 0:03:06.6]} 7... Nc6 {[%clk 0:03:04.2]} 8. d5 {[%clk 0:03:08.1]}
8... Ne7 {[%clk 0:03:05.4]} 9. Ne1 {[%clk 0:03:09.1]} 9... Nd7 {[%clk
0:03:06.6]} 10. Be3 {[%clk 0:03:10.1]} 10... f5 {[%clk 0:03:07.9]} 11. f3 {[%clk
0:03:11.5]} 11... f4 {[%clk 0:03:09.5]} 12. Bf2 {[%clk 0:03:13]} 12... Nf6
{[%clk 0:03:10.8]} 13. c5 {[%clk 0:03:14.1]} 13... g5 {[%clk 0:03:12.3]} 14. a4
{[%clk 0:03:15.2]} 14... h5 {[%clk 0:03:13.5]} 15. a5 {[%clk 0:03:16.5]} 15...
Ng6 {[%clk 0:03:11.5]} 16. cxd6 {[%clk 0:03:16.8]} 16... cxd6 {[%clk 0:03:12.3]}
17. Nb5 {[%clk 0:03:18.5]} 17... g4 {[%clk 0:03:11.3]} 18. Bxa7 {[%clk
0:03:17.6]} 18... g3 {[%clk 0:03:01.6]} 19. Bb6 {[%clk 0:03:18.3]} 19... gxh2+
{[%clk 0:02:55.4]} 20. Kh1 {[%clk 0:03:18.1]} 20... Qe7 {[%clk 0:02:56.9]} 21.
Nc7 {[%clk 0:03:19]} 21... h4 {[%clk 0:02:51.1]} 22. Nxa8 {[%clk 0:03:11.7]}
22... Nh5 {[%clk 0:02:51.5]} 23. Nc7 {[%clk 0:03:11.4]} 23... h3 {[%clk
0:02:43.7]} 24. Ne6 {[%clk 0:03:07]} 24... Qh4 {[%clk 0:02:03.4]} 25. Bf2 {[%clk
0:03:00.2]} 25... Ng3+ {[%clk 0:02:04.5]} 26. Bxg3 {[%clk 0:03:01.1]} 26... fxg3
{[%clk 0:02:06.4]} 27. Rc1 {[%clk 0:02:49.4]} 27... Nf4 {[%clk 0:01:58]} 28. Bc4
{[%clk 0:02:29]} 28... Bh6 {[%clk 0:01:37.4]} 29. Rc2 {[%clk 0:02:26.4]} 29...
Kh7 {[%clk 0:00:58.8]} 30. Ba2 {[%clk 0:02:21.7]} 30... Rg8 {[%clk 0:00:56]} 31.
Rc7+ {[%clk 0:02:05]} 31... Kh8 {[%clk 0:00:56.6]} 32. Qc2 {[%clk 0:02:02.7]}
32... Qf6 {[%clk 0:00:09]} 33. Rxc8 {[%clk 0:01:58.9]} 33... hxg2+ {[%clk
0:00:09.6]} 34. Nxg2 {[%clk 0:01:58.2]} 34... Nh3 {[%clk 0:00:10.2]} 35. Rxg8+
{[%clk 0:01:57.5]} 35... Kxg8 {[%clk 0:00:12.1]} 36. Qc8+ {[%clk 0:01:50.6]}
36... Kh7 {[%clk 0:00:12.2]} 37. Nf8+ {[%clk 0:01:50.8]} 37... Qxf8 {[%clk
0:00:05.9]} 38. Qxh3 {[%clk 0:01:52.7]} 1-0

[Event "*** Titled Tuesday Blitz"]
[Site "Chess.com"]
[Date "2019.04.02"]
[Round "7"]
[White "pedro_gines"]
[Black "wannabe2700"]
[Result "0-1"]
[WhiteElo "2446"]
[BlackElo "2606"]
[TimeControl "180+2"]
[EndTime "15:32:44 PDT"]
[Termination "wannabe2700 won on time"]

1. d4 {[%clk 0:03:01.9]} 1... Nf6 {[%clk 0:02:59.8]} 2. c4 {[%clk 0:02:57.9]}
2... e6 {[%clk 0:02:59.6]} 3. Nf3 {[%clk 0:02:56.9]} 3... d5 {[%clk 0:02:59.4]}
4. g3 {[%clk 0:02:56.1]} 4... Be7 {[%clk 0:03:00.7]} 5. Bg2 {[%clk 0:02:56.9]}
5... O-O {[%clk 0:03:02.6]} 6. O-O {[%clk 0:02:58.1]} 6... dxc4 {[%clk
0:03:04.1]} 7. Qc2 {[%clk 0:02:58.6]} 7... b5 {[%clk 0:03:04.7]} 8. a4 {[%clk
0:02:54.3]} 8... b4 {[%clk 0:03:05.7]} 9. Nfd2 {[%clk 0:02:51.4]} 9... c6 {[%clk
0:03:05.2]} 10. Nxc4 {[%clk 0:02:46.1]} 10... Qxd4 {[%clk 0:03:06.2]} 11. Be3
{[%clk 0:02:09.4]} 11... Qd8 {[%clk 0:03:06.5]} 12. Rd1 {[%clk 0:02:10]} 12...
Nd5 {[%clk 0:03:03.2]} 13. Bc1 {[%clk 0:02:06.5]} 13... Qc7 {[%clk 0:03:02.7]}
14. e4 {[%clk 0:02:07.1]} 14... Nb6 {[%clk 0:03:02]} 15. Bf4 {[%clk 0:02:04.8]}
15... Qb7 {[%clk 0:03:01.7]} 16. Na5 {[%clk 0:02:05.7]} 16... Qa6 {[%clk
0:03:02.1]} 17. Nxc6 {[%clk 0:02:01]} 17... Nxc6 {[%clk 0:03:04]} 18. Qxc6
{[%clk 0:02:02.3]} 18... Bb7 {[%clk 0:03:01.9]} 19. Qc7 {[%clk 0:02:02.8]} 19...
Bd8 {[%clk 0:02:54]} 20. Qe5 {[%clk 0:01:47.7]} 20... Bf6 {[%clk 0:02:54]} 21.
Qh5 {[%clk 0:01:48.4]} 21... g6 {[%clk 0:02:26.3]} 22. Qh6 {[%clk 0:01:35]}
22... Bxb2 {[%clk 0:02:26.7]} 23. Nd2 {[%clk 0:01:29.9]} 23... Bxa1 {[%clk
0:02:27]} 24. Rxa1 {[%clk 0:01:31.8]} 24... Qa5 {[%clk 0:02:03.7]} 25. Bg5
{[%clk 0:01:15.6]} 25... f6 {[%clk 0:02:03.7]} 26. Nf3 {[%clk 0:00:58.5]} 26...
Nd7 {[%clk 0:01:45.2]} 27. Rd1 {[%clk 0:00:55.3]} 27... Rad8 {[%clk 0:01:43.6]}
28. Bh3 {[%clk 0:00:06.5]} 28... Nc5 {[%clk 0:01:43.4]} 29. Rxd8 {[%clk
0:00:06.9]} 29... Qxd8 {[%clk 0:01:43.4]} 30. Be3 {[%clk 0:00:07.7]} 30... Qd1+
{[%clk 0:01:37.1]} 31. Kg2 {[%clk 0:00:08.4]} 31... Bxe4 {[%clk 0:01:32.7]} 32.
Qf4 {[%clk 0:00:08]} 32... e5 {[%clk 0:01:27.7]} 33. Be6+ {[%clk 0:00:06.4]}
33... Kh8 {[%clk 0:01:25.5]} 34. Qg4 {[%clk 0:00:04]} 34... f5 {[%clk
0:01:24.4]} 0-1